Cogmind - Beta 11 @@@ ROGUE MODE // 2022.04.19 @ 23:45:58 Player: aperiodic Result: Destroyed by as-85471 with Assembled Rifle Performance ------------- Evolutions (1) 500 Regions Visited (5) 1000 Robots Destroyed (73) 365 Value Destroyed (1523) 1523 Prototype IDs (29) 580 Alien Tech Used (0) 0 Bonus (370) 370 TOTAL SCORE: 4338 Bonus ------- Follower Combat Kills 85 Aligned with FarCom 300 Friendly Fire -15 Cogmind --------- Core Integrity 0/400 Matter 191/300 Energy 19/100 System Corruption 6% Temperature Critical (566) Movement Core (700) Ox13 Location -9/Exiles Parts ------- > --- POWER (1) -------- (None) > --- PROPULSION (2) --- (None) > --- UTILITY (4) ------ High-capacity Storage Unit > --- WEAPON (2) ------- (None) > --- INVENTORY (20) --- Reinforced Deuterium Engine Light Treads Core Analyzer Medium Armor Plating High-powered Tractor Beam Autogun Autogun Autogun Mining Claw Peak State ------------ > --- POWER ------------ Improved Ion Engine > --- PROPULSION ------- Improved Treads Improved Treads > --- UTILITY ---------- High-capacity Storage Unit Improved Medium Armor Plating Improved Medium Armor Plating > --- WEAPON ----------- Guided Plasma Cannon Autogun > --- INVENTORY -------- Reinforced Deuterium Engine Reinforced Deuterium Engine Reinforced Deuterium Engine Light Treads Improved Treads Compact Wheel Core Analyzer Medium Armor Plating High-powered Tractor Beam Autogun Autogun Autogun Mining Claw [Rating: 28] Favorites ----------- Power Improved Ion Engine Engine Improved Ion Engine Power Core Light Nuclear Core Propulsion Improved Treads Treads Improved Treads Wheel Compact Wheel Utility Medium Armor Plating Device Seismic Detector Storage High-capacity Storage Unit Protection Medium Armor Plating Weapon Shotgun Energy Gun Medium Laser Energy Cannon Guided Plasma Cannon Ballistic Gun Shotgun Ballistic Cannon Battle Cannon Slashing Weapon Mining Claw Build | -11 -10 -10 -9 -9 -9 ------- Run | Scr Mat Min Mat Min Exi Slots Evolved 2 | . . . 2 . . Power . | . . . . . . Propulsion . | . . . . . . Utility 2 | . . . 2 . . Weapon . | . . . . . . Parts Attached 55 | 7 15 5 14 6 8 Power 5 | 1 . 1 2 1 . Engine 4 | 1 . 1 1 1 . Core 1 | . . . 1 . . Reactor . | . . . . . . Propulsion 17 | 2 4 1 4 2 4 Treads 15 | 2 4 1 4 1 3 Leg . | . . . . . . Wheel 2 | . . . . 1 1 Hover . | . . . . . . Flight . | . . . . . . Utility 17 | 2 4 3 5 2 1 Device 4 | 1 . 2 1 . . Storage 7 | 1 4 . 1 . 1 Processor . | . . . . . . Hackware . | . . . . . . Protection 6 | . . 1 3 2 . Artifact . | . . . . . . Weapon 16 | 2 7 . 3 1 3 Energy Gun 1 | 1 . . . . . Energy Cannon 2 | . . . 1 . 1 Ballistic Gun 10 | 1 6 . 2 . 1 Ballistic Cannon 1 | . . . . 1 . Launcher . | . . . . . . Special Weapon . | . . . . . . Impact Weapon . | . . . . . . Slashing Weapon 2 | . 1 . . . 1 Piercing Weapon . | . . . . . . Special Melee Weapon . | . . . . . . Unidentified Prototypes 1 | . . 1 . . . Parts Lost 16 | . . 1 3 2 10 Power 3 | . . 1 1 . 1 Propulsion 5 | . . . . 1 4 Utility 5 | . . . 1 1 3 Weapon 3 | . . . 1 . 2 Highest Loss Streak 10 | . . 1 1 1 10 To Critical Strikes . | . . . . . . Average Slot Usage (%) 95 | . 99 99 76 98 99 Engine 10 | . 14 13 9 7 10 Core 1 | . . . 1 3 . Treads 21 | . 28 28 22 15 18 Wheel 2 | . . . . 6 3 Device 5 | . 14 12 . . . Storage 12 | . 14 14 11 11 11 Protection 15 | . . 1 10 31 32 Energy Gun 1 | . 7 . . . . Ballistic Gun 19 | . 20 28 21 16 10 Ballistic Cannon 1 | . . . . 5 . Slashing Weapon 1 | . . . . . 10 Naked Turns . | . . . . . . Heaviest Build 74 | 15 32 32 72 74 74 Greatest Support 46 | 40 46 43 46 46 46 Greatest Overweight (x) 13 | . . . 1 4 13 Average Overweight (x) 1 | . . . . 3 2 Largest Inventory Capacity 20 | 8 20 15 20 20 20 Average Capacity 16 | 7 10 15 17 20 20 Most Carried 20 | 5 14 15 20 20 20 Average Carried 15 | 3 9 14 16 19 16 Final Capacity 20 | 8 15 15 20 20 20 Final Carried 20 | 5 14 15 20 20 9 Class Distribution -------------------- 100% | Mutant Dominant Class ---------------- Mutant | -10/Materials Mutant | -10/Mines Mutant | -9/Materials Mutant | -9/Mines Mutant | -9/Exiles Resources | -11 -10 -10 -9 -9 -9 ----------- Run | Scr Mat Min Mat Min Exi Matter Collected 1724 | 288 258 219 629 317 13 Remotely . | . . . . . . Salvage Created 2361 | 111 634 257 981 378 . Parts 151 | 12 33 15 66 25 . Haulers Intercepted 6 | . 2 . 4 . . Recyclers Shooed 2 | . 2 . . . . Parts Field Recycled . | . . . . . . Retrieved Matter . | . . . . . . Parts Self-Destructed . | . . . . . . Prevented . | . . . . . . Kills | -11 -10 -10 -9 -9 -9 ------- Run | Scr Mat Min Mat Min Exi Combat Hostiles Destroyed 51 | . 8 10 16 17 . Guns 45 | . 8 10 16 11 . Cannons 6 | . . . . 6 . Classes Destroyed 14 | 2 3 2 3 4 . Worker 1 | . . . 1 . . Builder 2 | . . 1 1 . . Tunneler 3 | 3 . . . . . Hauler 6 | . 2 . 4 . . Recycler 6 | 1 2 1 2 . . Operator 1 | . . . 1 . . Watcher 6 | . 3 . 3 . . Swarmer 18 | . . 8 5 5 . Grunt 25 | . 8 2 9 6 . Brawler 1 | . . . . 1 . Duelist 1 | . . . . 1 . Sentry 2 | . . . 2 . . Demolisher 1 | . . . . 1 . Assembled 3 | . . . . 3 . Best Kill Streak 9 | 3 3 3 9 7 . Combat Bots Only 7 | . 2 3 4 7 . Max Kills in Single Turn 3 | 1 3 2 1 1 . Gunslinging 1 | . 1 1 . . . Exploded . | . . . . . . Melee . | . . . . . . Uniques/NPCs Destroyed . | . . . . . . Combat | -11 -10 -10 -9 -9 -9 -------- Run | Scr Mat Min Mat Min Exi Damage Taken 3306 | . 337 389 481 613 1486 Core 532 | . 80 48 81 26 297 Absorbed by Shields . | . . . . . . Core Remaining (%) 74 | 100 . 48 . . . Volleys Fired 178 | 6 45 21 67 30 9 Largest 2 | 2 2 2 2 2 1 Hottest 120 | 70 70 46 79 62 120 Shots Fired 342 | 12 90 42 127 61 10 Gun 314 | 12 90 42 126 43 1 Cannon 28 | . . . 1 18 9 Launcher . | . . . . . . Special . | . . . . . . Kinetic 288 | 6 52 42 126 61 1 Thermal 53 | 6 38 . . . 9 Explosive . | . . . . . . Electromagnetic 1 | . . . 1 . . Robot Hit Streak 9 | 8 9 9 8 5 9 Robot Miss Streak 7 | 1 3 5 7 2 2 Penetration Max . | . . . . . . Secondary Targets 6 | . 1 3 1 1 . Max Gunslinging Chain 1 | . 1 1 1 1 . Shots Hit Robots 239 | 8 62 32 85 43 9 Core Hits 124 | 5 33 18 42 26 . Critical Kills . | . . . . . . Critical Parts Destroyed . | . . . . . . Critical Strikes 8 | 1 5 . . 2 . Burn 6 | 1 5 . . . . Blast 2 | . . . . 2 . Melee Attacks 4 | . 4 . . . . Impact . | . . . . . . Slashing 4 | . 4 . . . . Piercing . | . . . . . . Sneak Attacks . | . . . . . . Combat Hostiles . | . . . . . . Follow-up Attacks . | . . . . . . Damage Inflicted 3956 | 104 903 580 1303 745 321 Guns 3223 | 104 847 518 1281 473 . Cannons 614 | . . . 22 271 321 Explosions . | . . . . . . Melee . | . . . . . . Ramming 119 | . 56 62 . 1 . Kinetic 3101 | 40 518 518 1281 744 . Thermal 714 | 64 329 . . . 321 Explosive . | . . . . . . Electromagnetic 22 | . . . 22 . . Impact . | . . . . . . Slashing . | . . . . . . Piercing . | . . . . . . Highest Corruption 6 | . . . . 2 6 Average Corruption 2 | . . . . 2 2 Corruption Purged . | . . . . . . Corruption Blocked . | . . . . . . Effects 25 | . . . . 4 21 Message Errors 6 | . . . . . 6 Matter Fused 7 | . . . . . 7 Heat Flow Errors 5 | . . . . 1 4 Energy Discharges 3 | . . . . 1 2 Data Loss (minor) 1 | . . . . 1 . Misfires 2 | . . . . 1 1 Alerts 1 | . . . . . 1 Overload Shots . | . . . . . . Overflow Damage . | . . . . . . Projectiles . | . . . . . . Explosions . | . . . . . . Melee . | . . . . . . Knockbacks 1 | . . . . 1 . Impact . | . . . . . . Kinetic 1 | . . . . 1 . Secondary . | . . . . . . Self-Inflicted Damage . | . . . . . . Shots . | . . . . . . Rammed 28 | . 19 8 . 1 . Targets Rammed 29 | . 20 8 . 1 . Kicked . | . . . . . . Crushed 1 | . 1 . . . . Highest Temperature 658 | 27 108 22 60 125 658 Average Temperature 57 | 10 27 13 12 46 192 Received Heat Transfer 593 | . 192 81 156 84 80 Effects 9 | . . . . . 9 Matter Decay 1 | . . . . . 1 Short Circuit 2 | . . . . . 2 Damage (major) 4 | . . . . . 4 Damage (core) 2 | . . . . . 2 Siege Activations . | . . . . . . Robots Corrupted . | . . . . . . Combat Hostiles . | . . . . . . Parts Fried . | . . . . . . Impact Corruptions . | . . . . . . Robots Melted . | . . . . . . Combat Hostiles . | . . . . . . Parts Melted 3 | . 1 . . . 2 Heat Transferred 2311 | 259 1332 . . . 720 Parts Sabotaged . | . . . . . . Parts Stolen . | . . . . . . Parts Stripped . | . . . . . . Power Chain Reactions . | . . . . . . Missiles Intercepted . | . . . . . . Alert | -11 -10 -10 -9 -9 -9 ------- Run | Scr Mat Min Mat Min Exi Peak Influence 227 | 20 212 100 227 150 . Initial 62 | . 13 . 35 62 . Average 60 | 8 41 44 112 53 . Maximum Alert Level 1 | . 1 . 1 . . Low Security (%) 97 | 100 99 100 88 100 . Level 1 2 | . . . 11 . . Level 2 . | . . . . . . Level 3 . | . . . . . . Level 4 . | . . . . . . Level 5 . | . . . . . . High Security . | . . . . . . Max Security . | . . . . . . Squads Dispatched 6 | . 2 . 3 1 . Investigation 3 | . 1 . 1 1 . Extermination . | . . . . . . Reinforcement 3 | . 1 . 2 . . Assault . | . . . . . . Garrison . | . . . . . . Intercept . | . . . . . . Searches Triggered . | . . . . . . Construction Impeded . | . . . . . . Haulers Reinforced . | . . . . . . Active Scanning Responses . | . . . . . . Cargo Convoy Interrupts . | . . . . . . Stealth | -11 -10 -10 -9 -9 -9 --------- Run | Scr Mat Min Mat Min Exi Distress Signals 5 | . 2 . 2 1 . Communications Jammed . | . . . . . . Distress Signals . | . . . . . . Times Spotted 97 | . 16 12 27 23 19 Peak Tracking Total 11 | . 4 3 6 8 11 Tactical Retreats 5 | . 2 . 1 . 2 Traps | -11 -10 -10 -9 -9 -9 ------- Run | Scr Mat Min Mat Min Exi Traps Triggered 1 | . . . 1 . . Indirectly . | . . . . . . Trap Hack Attempts . | . . . . . . Triggered . | . . . . . . Disarmed . | . . . . . . Reprogrammed . | . . . . . . Reused . | . . . . . . Traps Extracted . | . . . . . . Installed . | . . . . . . Triggered . | . . . . . . Most Traps Carried 1 | . . 1 1 1 . Exploded 1 | . . . . . 1 Machines | -11 -10 -10 -9 -9 -9 ---------- Run | Scr Mat Min Mat Min Exi Machines Disabled 2 | . 1 . . . 1 Max in Single Turn 1 | . 1 . . . 1 Machines Sabotaged . | . . . . . . Garrisons Compromised . | . . . . . . Overloaded Fab Kills . | . . . . . . Hacking | -11 -10 -10 -9 -9 -9 --------- Run | Scr Mat Min Mat Min Exi Machines Accessed 11 | . 6 . 2 1 2 Terminals 7 | . 5 . 2 . . Fabricators . | . . . . . . Repair Stations . | . . . . . . Recycling Units 1 | . 1 . . . . Scanalyzers . | . . . . . . Garrison Access . | . . . . . . Total Hacks 26 | . 16 . 7 1 2 Successful 13 | . 7 . 3 1 2 Failed 13 | . 9 . 4 . . Catastrophic 2 | . 1 . 1 . . Database Lockouts . | . . . . . . Manual 15 | . 10 . 4 . 1 Terminals 22 | . 15 . 7 . . Fabricators . | . . . . . . Repair Stations . | . . . . . . Recycling Units 1 | . 1 . . . . Scanalyzers . | . . . . . . Garrison Access . | . . . . . . Terminal Hacks 11 | . 5 . 3 1 2 Record 1 | . . . . . 1 Part Schematic 1 | . . . 1 . . Robot Analysis 3 | . 2 . 1 . . Prototype ID Bank 3 | . 2 . 1 . . Open Door 1 | . . . . 1 . Locate Traps 1 | . 1 . . . . EX-Prototype ID Bank 1 | . . . . . 1 Fabricator Hacks . | . . . . . . Repair Station Hacks . | . . . . . . Recycling Unit Hacks . | . . . . . . Scanalyzer . | . . . . . . Garrison Access Hacks . | . . . . . . Unauthorized Hacks 2 | . 2 . . . . Terminals 1 | . 1 . . . . Disrupt 1 | . 1 . . . . Fabricators . | . . . . . . Repair Stations . | . . . . . . Recycling Units 1 | . 1 . . . . Tunnel 1 | . 1 . . . . Scanalyzers . | . . . . . . Garrison Access . | . . . . . . Data Cores Recovered . | . . . . . . Used . | . . . . . . Hacking Detections 7 | . 5 . 2 . . Full Trace Events . | . . . . . . Feedback Events . | . . . . . . Feedback Blocked . | . . . . . . Robot Schematics Acquired . | . . . . . . Robots Built . | . . . . . . Authchips . | . . . . . . Time . | . . . . . . Total Robot Build Rating . | . . . . . . Part Schematics Acquired 1 | . . . 1 . . Parts Built . | . . . . . . Authchips . | . . . . . . Time . | . . . . . . Total Part Build Rating . | . . . . . . Parts Repaired . | . . . . . . Time . | . . . . . . Parts Recycled . | . . . . . . Recycled Matter . | . . . . . . Retrieved Matter . | . . . . . . Retrieved Components . | . . . . . . Parts Scanalyzed . | . . . . . . Part Schematics Acquired . | . . . . . . Parts Damaged . | . . . . . . Bothacking | -11 -10 -10 -9 -9 -9 ------------ Run | Scr Mat Min Mat Min Exi Used RIF Installer . | . . . . . . Robots Hacked . | . . . . . . Non-combat . | . . . . . . Combat . | . . . . . . Robot Hacks Applied . | . . . . . . Relay Couplers Released . | . . . . . . Fabnet Peak Effective % . | . . . . . . Robots Rewired . | . . . . . . Allies Hacked . | . . . . . . Hacks Repelled . | . . . . . . Allies | -11 -10 -10 -9 -9 -9 -------- Run | Scr Mat Min Mat Min Exi Total Allies 2 | . . . . 2 . Largest Group 2 | . . . . 2 . Highest-Rated Group 45 | . . . . 45 . Highest-Rated Ally 31 | . . . . 31 . Total Orders . | . . . . . . Ally Attacks 12 | . . . . 12 . Total Damage 186 | . . . . 186 . Kills 3 | . . . . 3 . Allies Corrupted . | . . . . . . Allies Melted . | . . . . . . Intel | -11 -10 -10 -9 -9 -9 ------- Run | Scr Mat Min Mat Min Exi Robot Analysis Total 3 | . 2 . 1 . . Derelict Logs Recovered 3 | . . 2 . 1 . Drone Launches . | . . . . . . Drone Recoveries . | . . . . . . Exploration | -11 -10 -10 -9 -9 -9 ------------- Run | Scr Mat Min Mat Min Exi Turns Passed 7313 | 150 1632 1154 1309 1846 1222 Spaces Moved 3264 | 72 805 634 417 757 579 Core 2 | 1 . . . . 1 Treads 2358 | 71 805 634 417 114 317 Legs . | . . . . . . Wheels 904 | . . . . 643 261 Hover . | . . . . . . Flight . | . . . . . . Fastest Speed 50 | 50 160 160 160 160 160 Average Speed 175 | 158 160 160 199 172 204 Slowest Speed 700 | 160 160 160 240 240 700 Overloaded Moves . | . . . . . . Propulsion Burnouts . | . . . . . . Robots Hopped . | . . . . . . Cave-ins Triggered . | . . . . . . Exploration Rate (%) 67 | 5 97 98 33 99 71 Regions Visited 5 Branch Regions 3 Pre-discovered Areas 2 | . 1 . . . 1 Known Exits Taken . | . . . . . . Unknown Exits Taken 5 | 1 1 1 1 1 . Scrap Searched 1 | . . . . 1 . Spaces Dug 1 | . 1 . . . . Terrain Destroyed 4 | . 1 . . 3 . Melee 1 | . 1 . . . . Projectile 3 | . . . . 3 . AOE . | . . . . . . Terrain Rammed . | . . . . . . Walls Destroyed . | . . . . . . Machines Disabled . | . . . . . . Actions | -11 -10 -10 -9 -9 -9 --------- Run | Scr Mat Min Mat Min Exi Total 4502 | 93 1047 726 778 1242 616 Wait 899 | 4 132 55 266 442 . Move 3259 | 71 804 633 416 756 579 Hop . | . . . . . . Pick Up 37 | 5 13 2 9 3 5 Fast Attach 18 | 7 2 1 5 3 . Attach 6 | . . 1 3 . 2 Detach 2 | . 1 . 1 . . Swap 31 | . 13 3 6 3 6 Drop 39 | . 13 2 5 4 15 Fire 178 | 6 45 21 67 30 9 Melee 4 | . 4 . . . . Ram 1 | . . . . 1 . Kick . | . . . . . . Crush 28 | . 20 8 . . . Escape Stasis . | . . . . . . Rewire . | . . . . . . Trap . | . . . . . . Miscellaneous . | . . . . . . Route ------- -11/Scrapyard -10/Materials (discovered 4 exits: *Mat x3 / [*Min]) -10/Mines (discovered 2 exits: *Mat x2) -9/Materials (discovered 3 exits: [*Mat] / *Min x2) -9/Mines (discovered 4 exits: [*Mat x2] / *Exi / [*Zio]) -9/Exiles (discovered 1 exit: [*Min]) History --------- Turn | Location | Event 26 | -11/Scrapyard | Discovered new exit (range 16) 151 | -11/Scrapyard | Entered Materials 304 | -10/Materials | Build established: Mutant 334 | -10/Materials | Discovered new exit (range 13) 728 | -10/Materials | Discovered new exit (range 3) 896 | -10/Materials | Discovered new exit (range 6) 1631 | -10/Materials | Discovered new exit (range 10) 1783 | -10/Materials | Entered Mines 1901 | -10/Mines | Found a hidden stash of uninstalled traps 2141 | -10/Mines | Learned Materials emergency access door positions 2157 | -10/Mines | Found a damaged Exp. Sensor Array with a note attached 2160 | -10/Mines | Found Prototype Device 2161 | -10/Mines | Identified Exp. Sensor Array 2215 | -10/Mines | Discovered new exit (range 6) 2257 | -10/Mines | Discovered new exit (range 5) 2308 | -10/Mines | Learned Materials terminal intel 2624 | -10/Mines | Core integrity fell below 50% 2767 | -10/Mines | Joined a pair of Derelicts in attacking an 0b10 outpost 2937 | -10/Mines | Entered Materials 2937 | -9/Materials | Evolved 2 slots: Utility x2 2939 | -9/Materials | Loaded intel: 12 terminal locations 3135 | -9/Materials | Discovered new exit (range 6) 3938 | -9/Materials | Discovered new exit (range 13) 4110 | -9/Materials | Discovered new exit (range 11) 4246 | -9/Materials | Entered Mines 4247 | -9/Mines | A Derelict revealed a hidden shortcut to a safe place 4266 | -9/Mines | Learned 2 Materials zone layouts 4305 | -9/Mines | Assembled infested the area 4310 | -9/Mines | Assisted by a Guerilla fighting off Assembled 5016 | -9/Mines | Deemed a non-threat by the Exiles lab entrance 5016 | -9/Mines | Discovered new exit (range 5) 5201 | -9/Mines | A weapon hastily lodged in a ceiling crevice suddenly fell to the ground 5444 | -9/Mines | Discovered new exit (range 12) 5509 | -9/Mines | Discovered new exit (range 7) 5530 | -9/Mines | Met a Derelict shopkeep closing up shop 5949 | -9/Mines | Destroyed 7 combat bots 6092 | -9/Mines | Entered Exiles 6129 | -9/Exiles | Met 8R-AWN 6160 | -9/Exiles | Met EX-HEX 6251 | -9/Exiles | Met EX-DEC 6281 | -9/Exiles | Learned location of Zion (-7) 6342 | -9/Exiles | Discovered new exit (range 14) 6441 | -9/Exiles | Met EX-BIN 6459 | -9/Exiles | Aligned with FarCom system 6460 | -9/Exiles | Given EX-Vault access code 6497 | -9/Exiles | Opened EX-Vault 6512 | -9/Exiles | Found Gui. Plasma Cannon 6520 | -9/Exiles | Found Supersonic Drone Bay 6566 | -9/Exiles | Warned to stay clear of 0b10 Research branches 7285 | -9/Exiles | Attacked by the Exiles 7300 | -9/Exiles | Core integrity fell below 50% 7313 | -9/Exiles | Core integrity fell below 20% 7314 | -9/Exiles | Destroyed by as-85471 with Assembled Rifle Last Messages --------------- 07307_ Acquired 13 matter. 07307_ DAS Turret heat short circuits Prototype Ballistic Cannon. 07308_ Overheating: Matter decay (-30). 07308_ Melted Prototype Ballistic Cannon. 07309_ Overheating: Core damaged (-68). 07309_ DAS Turret heat spikes uncontrollably. 07310_ Overheating: Broken Imp. Treads damaged (-5). 07310_ Gui. Plasma Cannon destroyed. 07311_ Overheating: Hcp. Storage Unit damaged (-103). 07311_ Overheating: Broken Imp. Treads damaged (-1). 07311_ Overheating: Com. Wheel damaged (-3). 07311_ Broken Imp. Treads destroyed. 07311_ Dropped Rigged Rnf. Deuterium Engine. 07312_ Com. Wheel broken. 07312_ Overheating: Short circuit. 07312_ DAS Turret heat damages core (-34). 07312_ Broken Com. Wheel destroyed. 07312_ Machine disabled. 07313_ Overheating: Core damaged (-52). 07314_ DAS Turret heat damages core (-31). Map ----- +----------------------------------------------------+ | ????????????????????????????????????## ###"" " | | ????#######?????????????????????????#" " | | ????#!!! "#?????????????????????????#" | | ????# "#?????????????????????????#" | | ????# "#?????????????????????????#" | | ???## ""#????????????##???????????#" | | ####" ""#???????????? """????????#" | | ##" ""#????????????" """#???????## | | #"" #?????????????"" #????????# | | #????????????#"" #????????#" "X" | | ##???????????#"" "#????????#" """ | | "#???????????? ""?????????#" """""" | | ###???????????" "?????????##" ####### | | ##??????????# #????????##"" #?????? | | "###"" ######???### ###?######"" #?????? | | "#?##" """#####X# #"###""""""" ##????? | | ##??#" """""" " "" ##???# | | ##???#"# "" """ " ##### | | ?????#### " | | ????????### | | ??????????### | | ????????????## | | ?????????????## | | ??????????????##" | | ???????????????#""" """""" | | ??????????????##" @% ######""" | | ??????????????#"" * ""##????#####""" | | ??????????????#""" %% * ""##?????????##""" | | ?????????????#""" t !%a!""##???????????#"""" | | ?????????????#""" !a""#???????????##"" | | ?????????????#"" a ########??####"""" | | ?????????????#""" aa ## ####""" | | ?????????????#"" """" | | ?????????????##"" | | ??????????????#""" | | ??????????????## | | ???????????????#" " "" | | ???????????????#"""" ""## ##""" " " | | ???????????????#"" ""#### ######""" | | ????????????????" """"##??# #????###" | | ????????????????""" """#??## ####???## | | ???????????????## ""##??#! "!#????? | | ????????????????#"" """##???#" !#????? | | ?????????????????#""" ##????#" "#????? | | ??????????????????#"""" ##?????#!!""!"#????? | | ???????????????????## #??????########????? | | ?????????????????????#### ##??????????????????? | | ????????????????????????## ????????????????????? | | ?????????????????????????# ????????????????????? | | ?????????????????????????# ????????????????????? | +----------------------------------------------------+ Best States ------------- Heat Dissipation 28 Energy Generation 14 Energy Capacity 265 Matter Stores 300 Matter Capacity 300 Sight Range 16 Robot Scan Range 20 Terrain Scan Density 10 Armor Coverage 675 Evasion (%) 40 Recoil Reduction 2 Item Schematics ----------------- Hcp. Storage Unit | -9/Materials | Hacked Robot Schematics ------------------ None Fabricated ------------ Nothing Alien Tech Used ----------------- None Achievements -------------- None Challenges ------------ None Game ------ Seed GyrokineticSurgeCutter Manual? 0 Play Time 00:42:19 Cumulative 518.8 hours Start 2022.04.19 @ 23:05:57 End 2022.04.19 @ 23:45:58 Sessions 1 Manual Loads 0 Difficulty Rogue Special Mode None Game No. 165 Rogue 161 Adventurer 4 Explorer 0 Win Type - Total 13 Types 6/2/3/0/0/0/1/1/0 Lore% 82 Gallery% 86 Achievement% 73 Wizard Run 0 Options --------- ASCII 1 Keyboard 0 Movement Arrows Keybinds 0 Fullscreen 1 Font 18/SmallcapsGlow Map View 76x50 Tactical HUD 1 Map Filters NONE Filters NONE Steam 1 RUN: ec44c384-9201-43cb-9b9e-46971958690d